DepartmentFamily,Entity,Date,ExpenseType,ExpenseArea,Supplier,PaymentNumber,InvoiceDistributionAmount,InvoiceDescription,SupplierPostCode,ExpenditureType
FOOD STANDARDS AGENCY - Westminster,FOOD STANDARDS AGENCY - Westminster,2018-06-19,EXP - PURCHASE OF GOODS/SERVICES - SUPPORT - CIVIL SERVICE ADMIN,FINANCE BRANCH,LONDON PENSIONS FUND AUTHORITY,1011706343,121657.75,2018-19 LPFA Pension Deficit reduction.,EC3N 4LP,ADMIN
FOOD STANDARDS AGENCY - Westminster,FOOD STANDARDS AGENCY - Westminster,2018-06-05,EXP - PURCHASE OF GOODS/SERV - SUPPORT - IT SUPPORT SERVICES,IT STRATEGY & DEVELOPMENT,COREAZURE LTD,1011706164,96742,Datacentre Discovery and Design - Milestone 4a: Fixed Price Migration (WP2b) Part B,EC1A 4EN,ADMIN
FOOD STANDARDS AGENCY - Westminster,FOOD STANDARDS AGENCY - Westminster,2018-06-05,EXP - SHORT-TERM CONTRACT & AGENCY STAFF - FULL COST,REGULATING OUR FUTURE,IBM UNITED KINGDOM LTD,1011706180,74953,FSA542Development of TOM,PO6 3AE,ADMIN
FOOD STANDARDS AGENCY - Westminster,FOOD STANDARDS AGENCY - Westminster,2018-06-25,EXP - PURCHASE OF GOODS/SERVICES - OTHER - PROGRAMME EXPENDITURE,CHIEF SCIENTIST  ,FRONTIER ECONOMICS LTD,1011706386,46872,FS301052 - Verifying FHRS food business data using ONS datasets ,WC1V 6DA,PROGRAMME
FOOD STANDARDS AGENCY - Westminster,FOOD STANDARDS AGENCY - Westminster,2018-06-20,EXP - PURCHASE OF GOODS/SERVICES - OTHER PROFESSIONAL SERVICES,REGULATORY DELIVERY,TRADING STANDARDS INSTITUTE (GRANTS),1011706361,38705.5,Feed Off. Conts 2017/18 Prog delivery (FH@PP). Feed Official Controls funding 2017/18: To deliver a programme of Official Controls (Food Hygiene at Primary Production) in 2017/18. Additional amount for receiving.,SS15 6TH,ADMIN
FOOD STANDARDS AGENCY - Westminster,FOOD STANDARDS AGENCY - Westminster,2018-06-05,EXP - PURCHASE OF GOODS/SERVICES - OTHER - PROGRAMME EXPENDITURE,REGULATORY DELIVERY,C E F A S,2012700453,36262.5,Shellfish biotoxin monitoring 2018/19,NR33 0HT,PROGRAMME
FOOD STANDARDS AGENCY - Westminster,FOOD STANDARDS AGENCY - Westminster,2018-06-05,EXP - PURCHASE OF GOODS/SERVICES - OTHER ICT COSTS - COMPUTER HARDWARE,IT SERVICE DELIVERY,COREAZURE LTD,1011706164,36225.71,"Datacentre Discovery and Design - Variable - Azure Basket of Goods - VMs, OMS & Storage (WP5)",EC1A 4EN,ADMIN
FOOD STANDARDS AGENCY - Westminster,FOOD STANDARDS AGENCY - Westminster,2018-06-01,EXP - PURCHASE OF GOODS/SERVICES - OTHER - PROGRAMME EXPENDITURE,CHIEF SCIENTIST  ,TECHNOLOGY STRATEGY BOARD,2012700451,32531.78,FS204016: 241230 - Non-targeted genetic and chemical profiling to identify adulterants and contaminants in food (Bulk Order),SN2 1UE,PROGRAMME
FOOD STANDARDS AGENCY - Westminster,FOOD STANDARDS AGENCY - Westminster,2018-06-18,EXP - PURCHASE OF GOODS/SERVICES - OTHER - PROGRAMME EXPENDITURE,INFORMATION & KNOWLEDGE MANAGMENT,OPEN DATA INSTITUTE,1011706328,32500,FS101177 Meat Conditions Data Project ,EC2A 4JE,PROGRAMME
FOOD STANDARDS AGENCY - Westminster,FOOD STANDARDS AGENCY - Westminster,2018-06-05,EXP - PURCHASE OF GOODS/SERVICES - OTHER ICT COSTS - COMPUTER HARDWARE,IT SERVICE DELIVERY,COREAZURE LTD,1011706164,31655,Datacentre Discovery and Design - Fixed Price - Azure Managed Service (WP4),EC1A 4EN,ADMIN
FOOD STANDARDS AGENCY - Westminster,FOOD STANDARDS AGENCY - Westminster,2018-06-06,EXP - PURCHASE OF GOODS/SERVICES - OTHER ICT COSTS - COMPUTER HARDWARE,IT SERVICE DELIVERY,COREAZURE LTD,1011706185,31655,Datacentre Discovery and Design - Fixed Price - Azure Managed Service (WP4),EC1A 4EN,ADMIN
FOOD STANDARDS AGENCY - Westminster,FOOD STANDARDS AGENCY - Westminster,2018-06-25,EXP - PURCHASE OF GOODS/SERVICES - OTHER - PROGRAMME EXPENDITURE,COMMS,MSQ PARTNERS GROUP LTD,1011706387,30000,MSQ - Food Safety Week 2018 Oasis Plan,W1T 4TJ,PROGRAMME
FOOD STANDARDS AGENCY - Westminster,FOOD STANDARDS AGENCY - Westminster,2018-06-07,Exp - Purchase Of Goods/Services - Consultancy,REGULATING OUR FUTURE,EPIMORPHICS LTD,1011706211,28172.5,Extra line PO 11770001519,BS20 6PT,ADMIN
FOOD STANDARDS AGENCY - Westminster,FOOD STANDARDS AGENCY - Westminster,2018-06-13,EXP - PURCHASE OF GOODS/SERVICES - IT MANAGEMENT AND CHANGE - IT DEVELOPMENT,DIGITAL,RAINMAKER SOLUTIONS LTD,1011706282,26500,Digital Workplace fixed work price,MK18 1HD,ADMIN
FOOD STANDARDS AGENCY - Westminster,FOOD STANDARDS AGENCY - Westminster,2018-06-20,Exp - Purchase Of Goods/Services - Consultancy,FOOD CRIME UNIT ADMIN,PA CONSULTING SERVICES LTD,1011706349,24630,HM Treasury business case for Phase 2 of the NFCU build,SG8 6DP,ADMIN
FOOD STANDARDS AGENCY - Westminster,FOOD STANDARDS AGENCY - Westminster,2018-06-05,EXP - PURCHASE OF GOODS/SERV - SUPPORT - IT SUPPORT SERVICES,IT SERVICE DELIVERY,LITTLE FISH UK LTD,1011706166,24611,Littlefish End user monthly service charge Apr 18 - Mar 19,NG1 1LS,ADMIN
FOOD STANDARDS AGENCY - Westminster,FOOD STANDARDS AGENCY - Westminster,2018-06-05,EXP - PURCHASE OF GOODS/SERV - SUPPORT - IT SUPPORT SERVICES,IT SERVICE DELIVERY,LITTLE FISH UK LTD,1011706166,24264,LittleFish Monthy Service Desk charge Apr 18 - Mar 19,NG1 1LS,ADMIN
FOOD STANDARDS AGENCY - Westminster,FOOD STANDARDS AGENCY - Westminster,2018-06-11,EXP - PURCHASE OF GOODS/SERV - SUPPORT - IT SUPPORT SERVICES,FINANCE BRANCH,SHARED SERVICES CONNECTED LTD,1011706239,24178.93,SSCL Core Charge Management Services 2018-19. ,HP2 7AH,ADMIN
FOOD STANDARDS AGENCY - Westminster,FOOD STANDARDS AGENCY - Westminster,2018-06-04,EXP - AMORTISATION - INTANGIBLE ASSETS,INFORMATION & KNOWLEDGE MANAGMENT,EPIMORPHICS LTD,1011706157,22950,extra line PO 11770001519.,BS20 6PT,CAPITAL
FOOD STANDARDS AGENCY - Westminster,FOOD STANDARDS AGENCY - Westminster,2018-06-07,Exp - Purchase Of Goods/Services - Consultancy,REGULATING OUR FUTURE,EPIMORPHICS LTD,1011706211,22838.39,RoF: Business Identifiers and Registration reference,BS20 6PT,ADMIN
FOOD STANDARDS AGENCY - Westminster,FOOD STANDARDS AGENCY - Westminster,2018-06-04,EXP - PURCHASE OF GOODS/SERVICES - OTHER ICT COSTS - COMPUTER SOFTWARE,PROCUREMENT,BRAVOSOLUTION UK LTD,1011706159,22500,Year 3 Invoice of the contract with Bravo Solutions for full suite licence access and Stakeholders from 01/05/2018 to 30/04/2019,EC2M 7AD,ADMIN
FOOD STANDARDS AGENCY - Westminster,FOOD STANDARDS AGENCY - Westminster,2018-06-05,EXP - PURCHASE OF GOODS/SERVICES - TRAINING & DEVELOPMENT,ORGANISATIONAL DEVELOPMENT,CSL - K P M G LLP,1011706172,21825,"Future, Engage, Deliver Redacted course",WD17 1DE,ADMIN
FOOD STANDARDS AGENCY - Westminster,FOOD STANDARDS AGENCY - Westminster,2018-06-13,EXP - PURCHASE OF GOODS/SERVICES - OTHER - PROGRAMME EXPENDITURE,REGULATORY DELIVERY,C E F A S,2012700458,21215.4,Phytoplankton sampling shellfish 2018-19,NR33 0HT,PROGRAMME
FOOD STANDARDS AGENCY - Westminster,FOOD STANDARDS AGENCY - Westminster,2018-06-05,EXP - PURCHASE OF GOODS/SERVICES - OTHER - PROGRAMME EXPENDITURE,REGULATORY DELIVERY,C E F A S,2012700453,21076,Shellfish classification,NR33 0HT,PROGRAMME
FOOD STANDARDS AGENCY - Westminster,FOOD STANDARDS AGENCY - Westminster,2018-06-04,EXP - AMORTISATION - INTANGIBLE ASSETS,INFORMATION & KNOWLEDGE MANAGMENT,EPIMORPHICS LTD,1011706157,20850,extra line PO 11770001519.,BS20 6PT,CAPITAL
FOOD STANDARDS AGENCY - Westminster,FOOD STANDARDS AGENCY - Westminster,2018-06-18,EXP - PURCHASE OF GOODS/SERVICES - OTHER - PROGRAMME EXPENDITURE,INFORMATION & KNOWLEDGE MANAGMENT,OPEN DATA INSTITUTE,1011706328,6500,MEAT CONDITION DATA PROTECTION,EC2A 4JE,PROGRAMME
FOOD STANDARDS AGENCY - Westminster,FOOD STANDARDS AGENCY - Westminster,2018-06-05,EXP - PURCHASE OF GOODS/SERVICES - TRAINING & DEVELOPMENT,ORGANISATIONAL DEVELOPMENT,CSL - K P M G LLP,1011706172,6377,"Future, Engage, Deliver Redacted course",WD17 1DE,ADMIN
FOOD STANDARDS AGENCY - Westminster,FOOD STANDARDS AGENCY - Westminster,2018-06-25,EXP - PURCHASE OF GOODS/SERVICES - OTHER - PROGRAMME EXPENDITURE,COMMS,MSQ PARTNERS GROUP LTD,1011706387,6000,FOOD SAFETY WEEK,W1T 4TJ,PROGRAMME
FOOD STANDARDS AGENCY - Westminster,FOOD STANDARDS AGENCY - Westminster,2018-06-07,Exp - Purchase Of Goods/Services - Consultancy,REGULATING OUR FUTURE,EPIMORPHICS LTD,1011706211,5634.5,PO NO 11770001519,BS20 6PT,ADMIN
FOOD STANDARDS AGENCY - Westminster,FOOD STANDARDS AGENCY - Westminster,2018-06-13,EXP - PURCHASE OF GOODS/SERVICES - IT MANAGEMENT AND CHANGE - IT DEVELOPMENT,DIGITAL,RAINMAKER SOLUTIONS LTD,1011706282,5300,PO 11770003571,MK18 1HD,ADMIN
FOOD STANDARDS AGENCY - Westminster,FOOD STANDARDS AGENCY - Westminster,2018-06-20,Exp - Purchase Of Goods/Services - Consultancy,FOOD CRIME UNIT ADMIN,PA CONSULTING SERVICES LTD,1011706349,4926,PROFESSIONAL FEE,SG8 6DP,ADMIN
FOOD STANDARDS AGENCY - Westminster,FOOD STANDARDS AGENCY - Westminster,2018-06-07,Exp - Purchase Of Goods/Services - Consultancy,REGULATING OUR FUTURE,EPIMORPHICS LTD,1011706211,4567.68,PO 11770003475,BS20 6PT,ADMIN
FOOD STANDARDS AGENCY - Westminster,FOOD STANDARDS AGENCY - Westminster,2018-06-04,EXP - PURCHASE OF GOODS/SERVICES - OTHER ICT COSTS - COMPUTER SOFTWARE,PROCUREMENT,BRAVOSOLUTION UK LTD,1011706159,4500,01/05/2018-30/04/2019,EC2M 7AD,ADMIN
FOOD STANDARDS AGENCY - Westminster,FOOD STANDARDS AGENCY - Westminster,2018-06-20,EXP - PURCHASE OF GOODS/SERVICES - RAIL TRAVEL,OPERATIONAL DELIVERY,REDFERN TRAVEL LTD,1011706356,4306.25,Travel Expenses Wk 23,BD1 5HQ,PROGRAMME
FOOD STANDARDS AGENCY - Westminster,FOOD STANDARDS AGENCY - Westminster,2018-06-25,EXP - PURCHASE OF GOODS/SERVICES - RAIL TRAVEL,OPERATIONAL DELIVERY,REDFERN TRAVEL LTD,1011706390,3137.55,TRAVEL EXPENSES UK WEEK 24,BD1 5HQ,PROGRAMME
FOOD STANDARDS AGENCY - Westminster,FOOD STANDARDS AGENCY - Westminster,2018-06-20,EXP - PURCHASE OF GOODS/SERVICES - RAIL TRAVEL,OPERATIONS ASSURANCE DIVISION (PROGRAMME),REDFERN TRAVEL LTD,1011706356,2333,Travel Expenses Wk 23,BD1 5HQ,ADMIN
FOOD STANDARDS AGENCY - Westminster,FOOD STANDARDS AGENCY - Westminster,2018-06-20,EXP - SHORT-TERM CONTRACT & AGENCY STAFF,FOOD CRIME UNIT PROG,Capita,1011706431,2186.68,Short Term Contract and Agency Staff,SL6 1DP,PROGRAMME
FOOD STANDARDS AGENCY - Westminster,FOOD STANDARDS AGENCY - Westminster,2018-06-20,EXP - PURCHASE OF GOODS/SERVICES - RAIL TRAVEL,COMMS,REDFERN TRAVEL LTD,1011706356,2019.7,Travel Expenses Wk 23,BD1 5HQ,PROGRAMME
FOOD STANDARDS AGENCY - Westminster,FOOD STANDARDS AGENCY - Westminster,2018-06-20,EXP - PURCHASE OF GOODS/SERVICES - SUBSISTENCE,OPERATIONS ASSURANCE DIVISION (PROGRAMME),REDFERN TRAVEL LTD,1011706356,1969.86,Travel Expenses Wk 23,BD1 5HQ,ADMIN
FOOD STANDARDS AGENCY - Westminster,FOOD STANDARDS AGENCY - Westminster,2018-06-25,EXP - PURCHASE OF GOODS/SERVICES - AIR TRAVEL,OPERATIONS ASSURANCE DIVISION (PROGRAMME),REDFERN TRAVEL LTD,1011706390,1905.73,TRAVEL EXPENSES UK WEEK 24,BD1 5HQ,PROGRAMME
FOOD STANDARDS AGENCY - Westminster,FOOD STANDARDS AGENCY - Westminster,2018-06-25,EXP - PURCHASE OF GOODS/SERVICES - RAIL TRAVEL,OPERATIONS ASSURANCE DIVISION (PROGRAMME),REDFERN TRAVEL LTD,1011706390,1831,TRAVEL EXPENSES UK WEEK 24,BD1 5HQ,ADMIN
FOOD STANDARDS AGENCY - Westminster,FOOD STANDARDS AGENCY - Westminster,2018-06-20,EXP - PURCHASE OF GOODS/SERVICES - AIR TRAVEL,INPORT & EXPORTS TEAM,REDFERN TRAVEL LTD,1011706356,1745.79,Travel Expenses Wk 23,BD1 5HQ,PROGRAMME
FOOD STANDARDS AGENCY - Westminster,FOOD STANDARDS AGENCY - Westminster,2018-06-20,EXP - SHORT-TERM CONTRACT & AGENCY STAFF,FOOD CRIME UNIT PROG,Capita,1011706431,1715.04,Short Term Contract and Agency Staff,SL6 1DP,PROGRAMME
FOOD STANDARDS AGENCY - Westminster,FOOD STANDARDS AGENCY - Westminster,2018-06-20,EXP - SHORT-TERM CONTRACT & AGENCY STAFF,INPORT & EXPORTS TEAM,Capita,1011706431,1658.83,Short Term Contract and Agency Staff,SL6 1DP,ADMIN
FOOD STANDARDS AGENCY - Westminster,FOOD STANDARDS AGENCY - Westminster,2018-06-25,EXP - PURCHASE OF GOODS/SERVICES - AIR TRAVEL,OPERATIONAL DELIVERY,REDFERN TRAVEL LTD,1011706390,1601.45,TRAVEL EXPENSES UK WEEK 24,BD1 5HQ,PROGRAMME
FOOD STANDARDS AGENCY - Westminster,FOOD STANDARDS AGENCY - Westminster,2018-06-20,EXP - PURCHASE OF GOODS/SERVICES - SUBSISTENCE,OPERATIONAL DELIVERY,REDFERN TRAVEL LTD,1011706356,1593.02,Travel Expenses Wk 23,BD1 5HQ,ADMIN
FOOD STANDARDS AGENCY - Westminster,FOOD STANDARDS AGENCY - Westminster,2018-06-20,EXP - PURCHASE OF GOODS/SERVICES - RAIL TRAVEL,REGULATORY DELIVERY,REDFERN TRAVEL LTD,1011706356,1581.7,Travel Expenses Wk 23,BD1 5HQ,ADMIN
FOOD STANDARDS AGENCY - Westminster,FOOD STANDARDS AGENCY - Westminster,2018-06-25,EXP - PURCHASE OF GOODS/SERVICES - SUBSISTENCE,OPERATIONAL DELIVERY,REDFERN TRAVEL LTD,1011706390,1566.4,TRAVEL EXPENSES UK WEEK 24,BD1 5HQ,ADMIN
FOOD STANDARDS AGENCY - Westminster,FOOD STANDARDS AGENCY - Westminster,2018-06-25,EXP - PURCHASE OF GOODS/SERVICES - RAIL TRAVEL,REGULATORY DELIVERY,REDFERN TRAVEL LTD,1011706390,1439.45,TRAVEL EXPENSES UK WEEK 24,BD1 5HQ,ADMIN
FOOD STANDARDS AGENCY - Westminster,FOOD STANDARDS AGENCY - Westminster,2018-06-20,EXP - PURCHASE OF GOODS/SERVICES - RAIL TRAVEL,ORGANISATIONAL DEVELOPMENT,REDFERN TRAVEL LTD,1011706356,1318.7,Travel Expenses Wk 23,BD1 5HQ,ADMIN
FOOD STANDARDS AGENCY - Westminster,FOOD STANDARDS AGENCY - Westminster,2018-06-20,EXP - SHORT-TERM CONTRACT & AGENCY STAFF,INPORT & EXPORTS TEAM,Capita,1011706431,1244.12,Short Term Contract and Agency Staff,SL6 1DP,ADMIN
FOOD STANDARDS AGENCY - Westminster,FOOD STANDARDS AGENCY - Westminster,2018-06-25,EXP - PURCHASE OF GOODS/SERVICES - RAIL TRAVEL,ORGANISATIONAL DEVELOPMENT,REDFERN TRAVEL LTD,1011706390,1218.4,TRAVEL EXPENSES UK WEEK 24,BD1 5HQ,PROGRAMME
FOOD STANDARDS AGENCY - Westminster,FOOD STANDARDS AGENCY - Westminster,2018-06-25,EXP - PURCHASE OF GOODS/SERVICES - SUBSISTENCE,OPERATIONS ASSURANCE DIVISION (PROGRAMME),REDFERN TRAVEL LTD,1011706390,1128.79,TRAVEL EXPENSES UK WEEK 24,BD1 5HQ,ADMIN
FOOD STANDARDS AGENCY - Westminster,FOOD STANDARDS AGENCY - Westminster,2018-06-20,EXP - PURCHASE OF GOODS/SERVICES - RAIL TRAVEL,FINANCE BRANCH,REDFERN TRAVEL LTD,1011706356,1061.86,Travel Expenses Wk 23,BD1 5HQ,ADMIN
FOOD STANDARDS AGENCY - Westminster,FOOD STANDARDS AGENCY - Westminster,2018-06-20,EXP - SHORT-TERM CONTRACT & AGENCY STAFF,FOOD CRIME UNIT PROG,Capita,1011706431,1029.02,Short Term Contract and Agency Staff,SL6 1DP,PROGRAMME
FOOD STANDARDS AGENCY - Westminster,FOOD STANDARDS AGENCY - Westminster,2018-06-25,EXP - PURCHASE OF GOODS/SERVICES - RAIL TRAVEL,REGULATING OUR FUTURE,REDFERN TRAVEL LTD,1011706390,984.7,TRAVEL EXPENSES UK WEEK 24,BD1 5HQ,ADMIN
FOOD STANDARDS AGENCY - Westminster,FOOD STANDARDS AGENCY - Westminster,2018-06-25,EXP - PURCHASE OF GOODS/SERVICES - SUBSISTENCE,REGULATORY DELIVERY,REDFERN TRAVEL LTD,1011706390,959,TRAVEL EXPENSES UK WEEK 24,BD1 5HQ,PROGRAMME
FOOD STANDARDS AGENCY - Westminster,FOOD STANDARDS AGENCY - Westminster,2018-06-20,EXP - PURCHASE OF GOODS/SERVICES - SUBSISTENCE,INFORMATION & KNOWLEDGE MANAGMENT,REDFERN TRAVEL LTD,1011706356,956.6,Travel Expenses Wk 23,BD1 5HQ,ADMIN
FOOD STANDARDS AGENCY - Westminster,FOOD STANDARDS AGENCY - Westminster,2018-06-20,EXP - PURCHASE OF GOODS/SERVICES - RAIL TRAVEL,REGULATING OUR FUTURE,REDFERN TRAVEL LTD,1011706356,865.2,Travel Expenses Wk 23,BD1 5HQ,PROGRAMME
FOOD STANDARDS AGENCY - Westminster,FOOD STANDARDS AGENCY - Westminster,2018-06-20,EXP - PURCHASE OF GOODS/SERVICES - RAIL TRAVEL,East 4,REDFERN TRAVEL LTD,1011706356,855.5,Travel Expenses Wk 23,BD1 5HQ,ADMIN
FOOD STANDARDS AGENCY - Westminster,FOOD STANDARDS AGENCY - Westminster,2018-06-20,EXP - PURCHASE OF GOODS/SERVICES - SUBSISTENCE,COMMS,REDFERN TRAVEL LTD,1011706356,837.41,Travel Expenses Wk 23,BD1 5HQ,ADMIN
FOOD STANDARDS AGENCY - Westminster,FOOD STANDARDS AGENCY - Westminster,2018-06-20,EXP - SHORT-TERM CONTRACT & AGENCY STAFF,INPORT & EXPORTS TEAM,Capita,1011706431,829.42,Short Term Contract and Agency Staff,SL6 1DP,ADMIN
FOOD STANDARDS AGENCY - Westminster,FOOD STANDARDS AGENCY - Westminster,2018-06-20,EXP - SHORT-TERM CONTRACT & AGENCY STAFF,INPORT & EXPORTS TEAM,Capita,1011706431,829.42,Short Term Contract and Agency Staff,SL6 1DP,ADMIN
FOOD STANDARDS AGENCY - Westminster,FOOD STANDARDS AGENCY - Westminster,2018-06-20,EXP - SHORT-TERM CONTRACT & AGENCY STAFF,INPORT & EXPORTS TEAM,Capita,1011706431,829.42,Short Term Contract and Agency Staff,SL6 1DP,ADMIN
FOOD STANDARDS AGENCY - Westminster,FOOD STANDARDS AGENCY - Westminster,2018-06-20,EXP - SHORT-TERM CONTRACT & AGENCY STAFF,INPORT & EXPORTS TEAM,Capita,1011706431,829.42,Short Term Contract and Agency Staff,SL6 1DP,ADMIN
FOOD STANDARDS AGENCY - Westminster,FOOD STANDARDS AGENCY - Westminster,2018-06-20,EXP - SHORT-TERM CONTRACT & AGENCY STAFF,INPORT & EXPORTS TEAM,Capita,1011706431,829.42,Short Term Contract and Agency Staff,SL6 1DP,ADMIN
FOOD STANDARDS AGENCY - Westminster,FOOD STANDARDS AGENCY - Westminster,2018-06-20,EXP - SHORT-TERM CONTRACT & AGENCY STAFF,INPORT & EXPORTS TEAM,Capita,1011706431,829.42,Short Term Contract and Agency Staff,SL6 1DP,ADMIN
FOOD STANDARDS AGENCY - Westminster,FOOD STANDARDS AGENCY - Westminster,2018-06-25,EXP - PURCHASE OF GOODS/SERVICES - SUBSISTENCE,FOOD INCIDENTS AND RESILIENCE PROG,REDFERN TRAVEL LTD,1011706390,825.68,TRAVEL EXPENSES UK WEEK 24,BD1 5HQ,ADMIN
FOOD STANDARDS AGENCY - Westminster,FOOD STANDARDS AGENCY - Westminster,2018-06-20,EXP - PURCHASE OF GOODS/SERVICES - RAIL TRAVEL,INFORMATION & KNOWLEDGE MANAGMENT,REDFERN TRAVEL LTD,1011706356,793.1,Travel Expenses Wk 23,BD1 5HQ,ADMIN
FOOD STANDARDS AGENCY - Westminster,FOOD STANDARDS AGENCY - Westminster,2018-06-20,EXP - PURCHASE OF GOODS/SERVICES - AIR TRAVEL,REGULATING OUR FUTURE,REDFERN TRAVEL LTD,1011706356,742.2,Travel Expenses Wk 23,BD1 5HQ,PROGRAMME
FOOD STANDARDS AGENCY - Westminster,FOOD STANDARDS AGENCY - Westminster,2018-06-25,EXP - PURCHASE OF GOODS/SERVICES - RAIL TRAVEL,FINANCE BRANCH,REDFERN TRAVEL LTD,1011706390,703,TRAVEL EXPENSES UK WEEK 24,BD1 5HQ,ADMIN
FOOD STANDARDS AGENCY - Westminster,FOOD STANDARDS AGENCY - Westminster,2018-06-25,EXP - PURCHASE OF GOODS/SERVICES - AIR TRAVEL,REGULATING OUR FUTURE,REDFERN TRAVEL LTD,1011706390,662.82,TRAVEL EXPENSES UK WEEK 24,BD1 5HQ,PROGRAMME
FOOD STANDARDS AGENCY - Westminster,FOOD STANDARDS AGENCY - Westminster,2018-06-20,EXP - PURCHASE OF GOODS/SERVICES - SUBSISTENCE,NON MEAT FIELD OPS,REDFERN TRAVEL LTD,1011706356,659.5,Travel Expenses Wk 23,BD1 5HQ,ADMIN
FOOD STANDARDS AGENCY - Westminster,FOOD STANDARDS AGENCY - Westminster,2018-06-20,EXP - SHORT-TERM CONTRACT & AGENCY STAFF,FOOD CRIME UNIT PROG,Capita,1011706431,645.66,Short Term Contract and Agency Staff,SL6 1DP,PROGRAMME
FOOD STANDARDS AGENCY - Westminster,FOOD STANDARDS AGENCY - Westminster,2018-06-20,EXP - PURCHASE OF GOODS/SERVICES - RAIL TRAVEL,PROCUREMENT,REDFERN TRAVEL LTD,1011706356,643.5,Travel Expenses Wk 23,BD1 5HQ,ADMIN
FOOD STANDARDS AGENCY - Westminster,FOOD STANDARDS AGENCY - Westminster,2018-06-20,EXP - PURCHASE OF GOODS/SERVICES - SUBSISTENCE,REGULATING OUR FUTURE,REDFERN TRAVEL LTD,1011706356,630.65,Travel Expenses Wk 23,BD1 5HQ,ADMIN
FOOD STANDARDS AGENCY - Westminster,FOOD STANDARDS AGENCY - Westminster,2018-06-25,EXP - PURCHASE OF GOODS/SERVICES - RAIL TRAVEL,North 1,REDFERN TRAVEL LTD,1011706390,597.2,TRAVEL EXPENSES UK WEEK 24,BD1 5HQ,PROGRAMME
FOOD STANDARDS AGENCY - Westminster,FOOD STANDARDS AGENCY - Westminster,2018-06-25,EXP - PURCHASE OF GOODS/SERVICES - RAIL TRAVEL,FOOD INCIDENTS AND RESILIENCE PROG,REDFERN TRAVEL LTD,1011706390,595.1,TRAVEL EXPENSES UK WEEK 24,BD1 5HQ,ADMIN
FOOD STANDARDS AGENCY - Westminster,FOOD STANDARDS AGENCY - Westminster,2018-06-25,EXP - PURCHASE OF GOODS/SERVICES -  FOREIGN AIR TRAVEL,"RADIOLOGICAL, NOVEL FOOD & PROCESSES",REDFERN TRAVEL LTD,1011706390,593.86,TRAVEL EXPENSES UK WEEK 24,BD1 5HQ,ADMIN
FOOD STANDARDS AGENCY - Westminster,FOOD STANDARDS AGENCY - Westminster,2018-06-20,EXP - PURCHASE OF GOODS/SERVICES - RAIL TRAVEL,INPORT & EXPORTS TEAM,REDFERN TRAVEL LTD,1011706356,553.69,Travel Expenses Wk 23,BD1 5HQ,ADMIN
FOOD STANDARDS AGENCY - Westminster,FOOD STANDARDS AGENCY - Westminster,2018-06-20,EXP - PURCHASE OF GOODS/SERVICES -  FOREIGN AIR TRAVEL,"AGRICULTURAL, PROCESS & ENVIRONMENTAL CONTAMINANTS",REDFERN TRAVEL LTD,1011706356,544,Travel Expenses Wk 23,BD1 5HQ,ADMIN
FOOD STANDARDS AGENCY - Westminster,FOOD STANDARDS AGENCY - Westminster,2018-06-25,EXP - PURCHASE OF GOODS/SERVICES - SUBSISTENCE,ORGANISATIONAL DEVELOPMENT,REDFERN TRAVEL LTD,1011706390,503.84,TRAVEL EXPENSES UK WEEK 24,BD1 5HQ,ADMIN
FOOD STANDARDS AGENCY - Westminster,FOOD STANDARDS AGENCY - Westminster,2018-06-25,EXP - PURCHASE OF GOODS/SERVICES - SUBSISTENCE,CHIEF SCIENTIST  ,REDFERN TRAVEL LTD,1011706390,482.68,TRAVEL EXPENSES UK WEEK 24,BD1 5HQ,ADMIN
FOOD STANDARDS AGENCY - Westminster,FOOD STANDARDS AGENCY - Westminster,2018-06-20,EXP - PURCHASE OF GOODS/SERVICES - RAIL TRAVEL,INTERNAL AUDIT,REDFERN TRAVEL LTD,1011706356,479.95,Travel Expenses Wk 23,BD1 5HQ,ADMIN
FOOD STANDARDS AGENCY - Westminster,FOOD STANDARDS AGENCY - Westminster,2018-06-25,EXP - PURCHASE OF GOODS/SERVICES - SUBSISTENCE,INTERNAL AUDIT,REDFERN TRAVEL LTD,1011706390,469.09,TRAVEL EXPENSES UK WEEK 24,BD1 5HQ,ADMIN
FOOD STANDARDS AGENCY - Westminster,FOOD STANDARDS AGENCY - Westminster,2018-06-25,EXP - PURCHASE OF GOODS/SERVICES - RAIL TRAVEL,INFORMATION & KNOWLEDGE MANAGMENT,REDFERN TRAVEL LTD,1011706390,450.4,TRAVEL EXPENSES UK WEEK 24,BD1 5HQ,PROGRAMME
FOOD STANDARDS AGENCY - Westminster,FOOD STANDARDS AGENCY - Westminster,2018-06-20,EXP - PURCHASE OF GOODS/SERVICES - RAIL TRAVEL,IT SERVICE DELIVERY,REDFERN TRAVEL LTD,1011706356,429.6,Travel Expenses Wk 23,BD1 5HQ,PROGRAMME
FOOD STANDARDS AGENCY - Westminster,FOOD STANDARDS AGENCY - Westminster,2018-06-25,EXP - PURCHASE OF GOODS/SERVICES - RAIL TRAVEL,East 4,REDFERN TRAVEL LTD,1011706390,424.7,TRAVEL EXPENSES UK WEEK 24,BD1 5HQ,ADMIN
FOOD STANDARDS AGENCY - Westminster,FOOD STANDARDS AGENCY - Westminster,2018-06-20,EXP - PURCHASE OF GOODS/SERVICES - RAIL TRAVEL,East 3,REDFERN TRAVEL LTD,1011706356,419.6,Travel Expenses Wk 23,BD1 5HQ,PROGRAMME
FOOD STANDARDS AGENCY - Westminster,FOOD STANDARDS AGENCY - Westminster,2018-06-25,EXP - PURCHASE OF GOODS/SERVICES -  FOREIGN AIR TRAVEL,INPORT & EXPORTS TEAM,REDFERN TRAVEL LTD,1011706390,416,TRAVEL EXPENSES UK WEEK 24,BD1 5HQ,PROGRAMME
FOOD STANDARDS AGENCY - Westminster,FOOD STANDARDS AGENCY - Westminster,2018-06-20,EXP - SHORT-TERM CONTRACT & AGENCY STAFF,INPORT & EXPORTS TEAM,Capita,1011706431,414.71,Short Term Contract and Agency Staff,SL6 1DP,ADMIN
FOOD STANDARDS AGENCY - Westminster,FOOD STANDARDS AGENCY - Westminster,2018-06-20,EXP - SHORT-TERM CONTRACT & AGENCY STAFF,INPORT & EXPORTS TEAM,Capita,1011706431,414.71,Short Term Contract and Agency Staff,SL6 1DP,ADMIN
FOOD STANDARDS AGENCY - Westminster,FOOD STANDARDS AGENCY - Westminster,2018-06-20,EXP - PURCHASE OF GOODS/SERVICES - SUBSISTENCE,Wales and West 4 ,REDFERN TRAVEL LTD,1011706356,413.82,Travel Expenses Wk 23,BD1 5HQ,ADMIN
FOOD STANDARDS AGENCY - Westminster,FOOD STANDARDS AGENCY - Westminster,2018-06-20,EXP - PURCHASE OF GOODS/SERVICES - SUBSISTENCE,PROGRAMME AND PROJECT DELIVERY,REDFERN TRAVEL LTD,1011706356,387.8,Travel Expenses Wk 23,BD1 5HQ,ADMIN
FOOD STANDARDS AGENCY - Westminster,FOOD STANDARDS AGENCY - Westminster,2018-06-25,EXP - PURCHASE OF GOODS/SERVICES - SUBSISTENCE,Wales and West 3 ,REDFERN TRAVEL LTD,1011706390,385.24,TRAVEL EXPENSES UK WEEK 24,BD1 5HQ,ADMIN
FOOD STANDARDS AGENCY - Westminster,FOOD STANDARDS AGENCY - Westminster,2018-06-25,EXP - PURCHASE OF GOODS/SERVICES -  FOREIGN AIR TRAVEL,"AGRICULTURAL, PROCESS & ENVIRONMENTAL CONTAMINANTS",REDFERN TRAVEL LTD,1011706390,384,TRAVEL EXPENSES UK WEEK 24,BD1 5HQ,ADMIN
FOOD STANDARDS AGENCY - Westminster,FOOD STANDARDS AGENCY - Westminster,2018-06-25,EXP - PURCHASE OF GOODS/SERVICES - RAIL TRAVEL,IT SERVICE DELIVERY,REDFERN TRAVEL LTD,1011706390,376.2,TRAVEL EXPENSES UK WEEK 24,BD1 5HQ,ADMIN
FOOD STANDARDS AGENCY - Westminster,FOOD STANDARDS AGENCY - Westminster,2018-06-25,EXP - PURCHASE OF GOODS/SERVICES - SUBSISTENCE,RESILIENCE ADMIN,REDFERN TRAVEL LTD,1011706390,374.6,TRAVEL EXPENSES UK WEEK 24,BD1 5HQ,ADMIN
FOOD STANDARDS AGENCY - Westminster,FOOD STANDARDS AGENCY - Westminster,2018-06-20,EXP - PURCHASE OF GOODS/SERVICES - RAIL TRAVEL,CHIEF EXECUTIVE & PRIVATE OFFICE,REDFERN TRAVEL LTD,1011706356,372.8,Travel Expenses Wk 23,BD1 5HQ,ADMIN
FOOD STANDARDS AGENCY - Westminster,FOOD STANDARDS AGENCY - Westminster,2018-06-25,EXP - PURCHASE OF GOODS/SERVICES - SUBSISTENCE,FINANCE BRANCH,REDFERN TRAVEL LTD,1011706390,368.02,TRAVEL EXPENSES UK WEEK 24,BD1 5HQ,ADMIN
FOOD STANDARDS AGENCY - Westminster,FOOD STANDARDS AGENCY - Westminster,2018-06-20,EXP - PURCHASE OF GOODS/SERVICES - RAIL TRAVEL,PROGRAMME AND PROJECT DELIVERY,REDFERN TRAVEL LTD,1011706356,367.1,Travel Expenses Wk 23,BD1 5HQ,ADMIN
FOOD STANDARDS AGENCY - Westminster,FOOD STANDARDS AGENCY - Westminster,2018-06-25,EXP - PURCHASE OF GOODS/SERVICES - RAIL TRAVEL,LEGAL  BRANCH A & INVESTIGATIONS,REDFERN TRAVEL LTD,1011706390,366.4,TRAVEL EXPENSES UK WEEK 24,BD1 5HQ,PROGRAMME
FOOD STANDARDS AGENCY - Westminster,FOOD STANDARDS AGENCY - Westminster,2018-06-20,EXP - PURCHASE OF GOODS/SERVICES - SUBSISTENCE,REGULATORY DELIVERY,REDFERN TRAVEL LTD,1011706356,356.4,Travel Expenses Wk 23,BD1 5HQ,PROGRAMME
FOOD STANDARDS AGENCY - Westminster,FOOD STANDARDS AGENCY - Westminster,2018-06-20,EXP - PURCHASE OF GOODS/SERVICES - SUBSISTENCE,North 1,REDFERN TRAVEL LTD,1011706356,344.09,Travel Expenses Wk 23,BD1 5HQ,PROGRAMME
FOOD STANDARDS AGENCY - Westminster,FOOD STANDARDS AGENCY - Westminster,2018-06-25,EXP - PURCHASE OF GOODS/SERVICES - RAIL TRAVEL,Wales and West 3 ,REDFERN TRAVEL LTD,1011706390,336.55,TRAVEL EXPENSES UK WEEK 24,BD1 5HQ,ADMIN
FOOD STANDARDS AGENCY - Westminster,FOOD STANDARDS AGENCY - Westminster,2018-06-25,EXP - PURCHASE OF GOODS/SERVICES - RAIL TRAVEL,FOOD CRIME UNIT ADMIN,REDFERN TRAVEL LTD,1011706390,336,TRAVEL EXPENSES UK WEEK 24,BD1 5HQ,ADMIN
FOOD STANDARDS AGENCY - Westminster,FOOD STANDARDS AGENCY - Westminster,2018-06-20,EXP - PURCHASE OF GOODS/SERVICES - SUBSISTENCE,East 4,REDFERN TRAVEL LTD,1011706356,323.39,Travel Expenses Wk 23,BD1 5HQ,ADMIN
FOOD STANDARDS AGENCY - Westminster,FOOD STANDARDS AGENCY - Westminster,2018-06-20,EXP - PURCHASE OF GOODS/SERVICES - AIR TRAVEL,PROGRAMME AND PROJECT DELIVERY,REDFERN TRAVEL LTD,1011706356,317.69,Travel Expenses Wk 23,BD1 5HQ,PROGRAMME
FOOD STANDARDS AGENCY - Westminster,FOOD STANDARDS AGENCY - Westminster,2018-06-20,EXP - PURCHASE OF GOODS/SERVICES - AIR TRAVEL,OPERATIONS ASSURANCE DIVISION (PROGRAMME),REDFERN TRAVEL LTD,1011706356,315.95,Travel Expenses Wk 23,BD1 5HQ,ADMIN
FOOD STANDARDS AGENCY - Westminster,FOOD STANDARDS AGENCY - Westminster,2018-06-25,EXP - PURCHASE OF GOODS/SERVICES - SUBSISTENCE,REGULATORY & INTERNATIONAL,REDFERN TRAVEL LTD,1011706390,308.05,TRAVEL EXPENSES UK WEEK 24,BD1 5HQ,ADMIN
FOOD STANDARDS AGENCY - Westminster,FOOD STANDARDS AGENCY - Westminster,2018-06-20,EXP - PURCHASE OF GOODS/SERVICES - RAIL TRAVEL,REGULATORY & INTERNATIONAL,REDFERN TRAVEL LTD,1011706356,307,Travel Expenses Wk 23,BD1 5HQ,ADMIN
FOOD STANDARDS AGENCY - Westminster,FOOD STANDARDS AGENCY - Westminster,2018-06-25,EXP - PURCHASE OF GOODS/SERVICES - RAIL TRAVEL,"RADIOLOGICAL, NOVEL FOOD & PROCESSES",REDFERN TRAVEL LTD,1011706390,303.3,TRAVEL EXPENSES UK WEEK 24,BD1 5HQ,PROGRAMME
FOOD STANDARDS AGENCY - Westminster,FOOD STANDARDS AGENCY - Westminster,2018-06-20,EXP - PURCHASE OF GOODS/SERVICES - SUBSISTENCE,"RADIOLOGICAL, NOVEL FOOD & PROCESSES",REDFERN TRAVEL LTD,1011706356,299.1,Travel Expenses Wk 23,BD1 5HQ,ADMIN
FOOD STANDARDS AGENCY - Westminster,FOOD STANDARDS AGENCY - Westminster,2018-06-25,EXP - PURCHASE OF GOODS/SERVICES -  FOREIGN AIR TRAVEL,FOOD INCIDENTS AND RESILIENCE PROG,REDFERN TRAVEL LTD,1011706390,296.84,TRAVEL EXPENSES UK WEEK 24,BD1 5HQ,ADMIN
FOOD STANDARDS AGENCY - Westminster,FOOD STANDARDS AGENCY - Westminster,2018-06-20,EXP - PURCHASE OF GOODS/SERVICES - FOREIGN SUBSISTENCE,FOOD ADDITIVES,REDFERN TRAVEL LTD,1011706356,295.24,Travel Expenses Wk 23,BD1 5HQ,ADMIN
FOOD STANDARDS AGENCY - Westminster,FOOD STANDARDS AGENCY - Westminster,2018-06-25,EXP - PURCHASE OF GOODS/SERVICES - SUBSISTENCE,REGULATING OUR FUTURE,REDFERN TRAVEL LTD,1011706390,290.2,TRAVEL EXPENSES UK WEEK 24,BD1 5HQ,ADMIN
FOOD STANDARDS AGENCY - Westminster,FOOD STANDARDS AGENCY - Westminster,2018-06-20,EXP - PURCHASE OF GOODS/SERVICES - SUBSISTENCE,REGULATORY & INTERNATIONAL,REDFERN TRAVEL LTD,1011706356,278.89,Travel Expenses Wk 23,BD1 5HQ,ADMIN
FOOD STANDARDS AGENCY - Westminster,FOOD STANDARDS AGENCY - Westminster,2018-06-25,EXP - PURCHASE OF GOODS/SERVICES - RAIL TRAVEL,RESILIENCE ADMIN,REDFERN TRAVEL LTD,1011706390,267.95,TRAVEL EXPENSES UK WEEK 24,BD1 5HQ,ADMIN
FOOD STANDARDS AGENCY - Westminster,FOOD STANDARDS AGENCY - Westminster,2018-06-25,EXP - PURCHASE OF GOODS/SERVICES - SUBSISTENCE,PROGRAMME AND PROJECT DELIVERY,REDFERN TRAVEL LTD,1011706390,259.8,TRAVEL EXPENSES UK WEEK 24,BD1 5HQ,ADMIN
FOOD STANDARDS AGENCY - Westminster,FOOD STANDARDS AGENCY - Westminster,2018-06-25,EXP - PURCHASE OF GOODS/SERVICES - RAIL TRAVEL,REGULATORY & INTERNATIONAL,REDFERN TRAVEL LTD,1011706390,259.5,TRAVEL EXPENSES UK WEEK 24,BD1 5HQ,ADMIN
FOOD STANDARDS AGENCY - Westminster,FOOD STANDARDS AGENCY - Westminster,2018-06-25,EXP - PURCHASE OF GOODS/SERVICES -  FOREIGN AIR TRAVEL,FOOD ADDITIVES,REDFERN TRAVEL LTD,1011706390,256,TRAVEL EXPENSES UK WEEK 24,BD1 5HQ,PROGRAMME
FOOD STANDARDS AGENCY - Westminster,FOOD STANDARDS AGENCY - Westminster,2018-06-20,EXP - PURCHASE OF GOODS/SERVICES - SUBSISTENCE,ORGANISATIONAL DEVELOPMENT,REDFERN TRAVEL LTD,1011706356,252.55,Travel Expenses Wk 23,BD1 5HQ,PROGRAMME
FOOD STANDARDS AGENCY - Westminster,FOOD STANDARDS AGENCY - Westminster,2018-06-20,EXP - PURCHASE OF GOODS/SERVICES - RAIL TRAVEL,East 2,REDFERN TRAVEL LTD,1011706356,251,Travel Expenses Wk 23,BD1 5HQ,ADMIN
FOOD STANDARDS AGENCY - Westminster,FOOD STANDARDS AGENCY - Westminster,2018-06-25,EXP - PURCHASE OF GOODS/SERVICES - AIR TRAVEL,FOOD INCIDENTS AND RESILIENCE PROG,REDFERN TRAVEL LTD,1011706390,249.42,TRAVEL EXPENSES UK WEEK 24,BD1 5HQ,ADMIN
FOOD STANDARDS AGENCY - Westminster,FOOD STANDARDS AGENCY - Westminster,2018-06-20,EXP - PURCHASE OF GOODS/SERVICES - SUBSISTENCE,INTERNAL AUDIT,REDFERN TRAVEL LTD,1011706356,247.03,Travel Expenses Wk 23,BD1 5HQ,PROGRAMME
FOOD STANDARDS AGENCY - Westminster,FOOD STANDARDS AGENCY - Westminster,2018-06-25,EXP - PURCHASE OF GOODS/SERVICES - SUBSISTENCE,"CHAIR, DEPUTY CHAIR & BOARD",REDFERN TRAVEL LTD,1011706390,246.63,TRAVEL EXPENSES UK WEEK 24,BD1 5HQ,ADMIN
FOOD STANDARDS AGENCY - Westminster,FOOD STANDARDS AGENCY - Westminster,2018-06-20,EXP - PURCHASE OF GOODS/SERVICES - SUBSISTENCE,Wales and West 1 (England),REDFERN TRAVEL LTD,1011706356,241.29,Travel Expenses Wk 23,BD1 5HQ,ADMIN
FOOD STANDARDS AGENCY - Westminster,FOOD STANDARDS AGENCY - Westminster,2018-06-20,EXP - PURCHASE OF GOODS/SERVICES - AIR TRAVEL,REGULATORY DELIVERY,REDFERN TRAVEL LTD,1011706356,240.46,Travel Expenses Wk 23,BD1 5HQ,ADMIN
FOOD STANDARDS AGENCY - Westminster,FOOD STANDARDS AGENCY - Westminster,2018-06-20,EXP - PURCHASE OF GOODS/SERVICES - RAIL TRAVEL,CORPORATE SUPPORT UNIT,REDFERN TRAVEL LTD,1011706356,240.4,Travel Expenses Wk 23,BD1 5HQ,ADMIN
FOOD STANDARDS AGENCY - Westminster,FOOD STANDARDS AGENCY - Westminster,2018-06-20,EXP - PURCHASE OF GOODS/SERVICES - RAIL TRAVEL,CHIEF SCIENTIST  ,REDFERN TRAVEL LTD,1011706356,234.8,Travel Expenses Wk 23,BD1 5HQ,ADMIN
FOOD STANDARDS AGENCY - Westminster,FOOD STANDARDS AGENCY - Westminster,2018-06-20,EXP - PURCHASE OF GOODS/SERVICES - RAIL TRAVEL,"RADIOLOGICAL, NOVEL FOOD & PROCESSES",REDFERN TRAVEL LTD,1011706356,226,Travel Expenses Wk 23,BD1 5HQ,PROGRAMME
FOOD STANDARDS AGENCY - Westminster,FOOD STANDARDS AGENCY - Westminster,2018-06-25,EXP - PURCHASE OF GOODS/SERVICES - AIR TRAVEL,COMMS,REDFERN TRAVEL LTD,1011706390,225,TRAVEL EXPENSES UK WEEK 24,BD1 5HQ,ADMIN
FOOD STANDARDS AGENCY - Westminster,FOOD STANDARDS AGENCY - Westminster,2018-06-20,EXP - PURCHASE OF GOODS/SERVICES - SUBSISTENCE,East 3,REDFERN TRAVEL LTD,1011706356,220.88,Travel Expenses Wk 23,BD1 5HQ,ADMIN
FOOD STANDARDS AGENCY - Westminster,FOOD STANDARDS AGENCY - Westminster,2018-06-20,EXP - PURCHASE OF GOODS/SERVICES - SUBSISTENCE,FINANCE BRANCH,REDFERN TRAVEL LTD,1011706356,219.8,Travel Expenses Wk 23,BD1 5HQ,ADMIN
FOOD STANDARDS AGENCY - Westminster,FOOD STANDARDS AGENCY - Westminster,2018-06-25,EXP - PURCHASE OF GOODS/SERVICES - SUBSISTENCE,CORPORATE SUPPORT UNIT,REDFERN TRAVEL LTD,1011706390,219.58,TRAVEL EXPENSES UK WEEK 24,BD1 5HQ,PROGRAMME
FOOD STANDARDS AGENCY - Westminster,FOOD STANDARDS AGENCY - Westminster,2018-06-25,EXP - PURCHASE OF GOODS/SERVICES - RAIL TRAVEL,East 3,REDFERN TRAVEL LTD,1011706390,211.1,TRAVEL EXPENSES UK WEEK 24,BD1 5HQ,ADMIN
FOOD STANDARDS AGENCY - Westminster,FOOD STANDARDS AGENCY - Westminster,2018-06-20,EXP - PURCHASE OF GOODS/SERVICES - RAIL TRAVEL,SCIENTIFIC METHODS AND LABORATORY POLICY,REDFERN TRAVEL LTD,1011706356,204,Travel Expenses Wk 23,BD1 5HQ,ADMIN
FOOD STANDARDS AGENCY - Westminster,FOOD STANDARDS AGENCY - Westminster,2018-06-20,EXP - PURCHASE OF GOODS/SERVICES - RAIL TRAVEL,MEAT HYGIENE POLICY,REDFERN TRAVEL LTD,1011706356,201.8,Travel Expenses Wk 23,BD1 5HQ,ADMIN
FOOD STANDARDS AGENCY - Westminster,FOOD STANDARDS AGENCY - Westminster,2018-06-25,EXP - PURCHASE OF GOODS/SERVICES - RAIL TRAVEL,CHIEF EXECUTIVE & PRIVATE OFFICE,REDFERN TRAVEL LTD,1011706390,201.55,TRAVEL EXPENSES UK WEEK 24,BD1 5HQ,PROGRAMME
FOOD STANDARDS AGENCY - Westminster,FOOD STANDARDS AGENCY - Westminster,2018-06-25,EXP - PURCHASE OF GOODS/SERVICES - SUBSISTENCE,Wales and West 4 ,REDFERN TRAVEL LTD,1011706390,195.03,TRAVEL EXPENSES UK WEEK 24,BD1 5HQ,ADMIN
FOOD STANDARDS AGENCY - Westminster,FOOD STANDARDS AGENCY - Westminster,2018-06-20,EXP - PURCHASE OF GOODS/SERVICES - AIR TRAVEL,REGULATORY & INTERNATIONAL,REDFERN TRAVEL LTD,1011706356,193.95,Travel Expenses Wk 23,BD1 5HQ,ADMIN
FOOD STANDARDS AGENCY - Westminster,FOOD STANDARDS AGENCY - Westminster,2018-06-25,EXP - PURCHASE OF GOODS/SERVICES - RAIL TRAVEL,PROGRAMME AND PROJECT DELIVERY,REDFERN TRAVEL LTD,1011706390,187.6,TRAVEL EXPENSES UK WEEK 24,BD1 5HQ,ADMIN
FOOD STANDARDS AGENCY - Westminster,FOOD STANDARDS AGENCY - Westminster,2018-06-25,EXP - PURCHASE OF GOODS/SERVICES - AIR TRAVEL,CHIEF SCIENTIST  ,REDFERN TRAVEL LTD,1011706390,186.06,TRAVEL EXPENSES UK WEEK 24,BD1 5HQ,ADMIN
FOOD STANDARDS AGENCY - Westminster,FOOD STANDARDS AGENCY - Westminster,2018-06-25,EXP - PURCHASE OF GOODS/SERVICES - RAIL TRAVEL,FOODBORNE DISEASE CONTROL,REDFERN TRAVEL LTD,1011706390,177,TRAVEL EXPENSES UK WEEK 24,BD1 5HQ,ADMIN
FOOD STANDARDS AGENCY - Westminster,FOOD STANDARDS AGENCY - Westminster,2018-06-20,EXP - PURCHASE OF GOODS/SERVICES - SUBSISTENCE,FOODBORNE DISEASE CONTROL,REDFERN TRAVEL LTD,1011706356,172.92,Travel Expenses Wk 23,BD1 5HQ,ADMIN
FOOD STANDARDS AGENCY - Westminster,FOOD STANDARDS AGENCY - Westminster,2018-06-25,EXP - PURCHASE OF GOODS/SERVICES - RAIL TRAVEL,FOOD ADDITIVES,REDFERN TRAVEL LTD,1011706390,170.7,TRAVEL EXPENSES UK WEEK 24,BD1 5HQ,PROGRAMME
FOOD STANDARDS AGENCY - Westminster,FOOD STANDARDS AGENCY - Westminster,2018-06-20,EXP - PURCHASE OF GOODS/SERVICES - SUBSISTENCE,"PLANNING, PERFORMANCE & CHANGE",REDFERN TRAVEL LTD,1011706356,164.7,Travel Expenses Wk 23,BD1 5HQ,ADMIN
FOOD STANDARDS AGENCY - Westminster,FOOD STANDARDS AGENCY - Westminster,2018-06-20,EXP - PURCHASE OF GOODS/SERVICES - RAIL TRAVEL,"PLANNING, PERFORMANCE & CHANGE",REDFERN TRAVEL LTD,1011706356,163.6,Travel Expenses Wk 23,BD1 5HQ,ADMIN
FOOD STANDARDS AGENCY - Westminster,FOOD STANDARDS AGENCY - Westminster,2018-06-25,EXP - PURCHASE OF GOODS/SERVICES - SUBSISTENCE,North 1,REDFERN TRAVEL LTD,1011706390,161.06,TRAVEL EXPENSES UK WEEK 24,BD1 5HQ,ADMIN
FOOD STANDARDS AGENCY - Westminster,FOOD STANDARDS AGENCY - Westminster,2018-06-25,EXP - PURCHASE OF GOODS/SERVICES - SUBSISTENCE,IT STRATEGY & DEVELOPMENT,REDFERN TRAVEL LTD,1011706390,160.1,TRAVEL EXPENSES UK WEEK 24,BD1 5HQ,ADMIN
FOOD STANDARDS AGENCY - Westminster,FOOD STANDARDS AGENCY - Westminster,2018-06-20,EXP - PURCHASE OF GOODS/SERVICES -  FOREIGN AIR TRAVEL,REGULATORY & INTERNATIONAL,REDFERN TRAVEL LTD,1011706356,160,Travel Expenses Wk 23,BD1 5HQ,PROGRAMME
FOOD STANDARDS AGENCY - Westminster,FOOD STANDARDS AGENCY - Westminster,2018-06-20,EXP - PURCHASE OF GOODS/SERVICES - TAXI SERVICES,OPERATIONS ASSURANCE DIVISION (PROGRAMME),REDFERN TRAVEL LTD,1011706356,157.32,Travel Expenses Wk 23,BD1 5HQ,ADMIN
FOOD STANDARDS AGENCY - Westminster,FOOD STANDARDS AGENCY - Westminster,2018-06-20,EXP - PURCHASE OF GOODS/SERVICES - RAIL TRAVEL,ALLERGY & INTOLERANCE,REDFERN TRAVEL LTD,1011706356,152.05,Travel Expenses Wk 23,BD1 5HQ,PROGRAMME
FOOD STANDARDS AGENCY - Westminster,FOOD STANDARDS AGENCY - Westminster,2018-06-20,EXP - PURCHASE OF GOODS/SERVICES - AIR TRAVEL,FOOD INCIDENTS AND RESILIENCE PROG,REDFERN TRAVEL LTD,1011706356,151.25,Travel Expenses Wk 23,BD1 5HQ,PROGRAMME
FOOD STANDARDS AGENCY - Westminster,FOOD STANDARDS AGENCY - Westminster,2018-06-20,EXP - PURCHASE OF GOODS/SERVICES - RAIL TRAVEL,FOOD CRIME UNIT PROG,REDFERN TRAVEL LTD,1011706356,149,Travel Expenses Wk 23,BD1 5HQ,ADMIN
FOOD STANDARDS AGENCY - Westminster,FOOD STANDARDS AGENCY - Westminster,2018-06-20,EXP - PURCHASE OF GOODS/SERVICES -  FOREIGN AIR TRAVEL,MEAT HYGIENE POLICY,REDFERN TRAVEL LTD,1011706356,148,Travel Expenses Wk 23,BD1 5HQ,PROGRAMME
FOOD STANDARDS AGENCY - Westminster,FOOD STANDARDS AGENCY - Westminster,2018-06-20,EXP - PURCHASE OF GOODS/SERVICES - AIR TRAVEL,OPERATIONAL DELIVERY,REDFERN TRAVEL LTD,1011706356,146.51,Travel Expenses Wk 23,BD1 5HQ,PROGRAMME
FOOD STANDARDS AGENCY - Westminster,FOOD STANDARDS AGENCY - Westminster,2018-06-20,EXP - PURCHASE OF GOODS/SERVICES - RAIL TRAVEL,NON MEAT FIELD OPS,REDFERN TRAVEL LTD,1011706356,144.3,Travel Expenses Wk 23,BD1 5HQ,ADMIN
FOOD STANDARDS AGENCY - Westminster,FOOD STANDARDS AGENCY - Westminster,2018-06-25,EXP - PURCHASE OF GOODS/SERVICES - AIR TRAVEL,"AGRICULTURAL, PROCESS & ENVIRONMENTAL CONTAMINANTS",REDFERN TRAVEL LTD,1011706390,138,TRAVEL EXPENSES UK WEEK 24,BD1 5HQ,ADMIN
FOOD STANDARDS AGENCY - Westminster,FOOD STANDARDS AGENCY - Westminster,2018-06-25,EXP - PURCHASE OF GOODS/SERVICES - RAIL TRAVEL,"PLANNING, PERFORMANCE & CHANGE",REDFERN TRAVEL LTD,1011706390,134.2,TRAVEL EXPENSES UK WEEK 24,BD1 5HQ,PROGRAMME
FOOD STANDARDS AGENCY - Westminster,FOOD STANDARDS AGENCY - Westminster,2018-06-25,EXP - PURCHASE OF GOODS/SERVICES - SUBSISTENCE,North 4,REDFERN TRAVEL LTD,1011706390,128.55,TRAVEL EXPENSES UK WEEK 24,BD1 5HQ,ADMIN
FOOD STANDARDS AGENCY - Westminster,FOOD STANDARDS AGENCY - Westminster,2018-06-20,EXP - PURCHASE OF GOODS/SERVICES -  FOREIGN AIR TRAVEL,FOOD ADDITIVES,REDFERN TRAVEL LTD,1011706356,128,Travel Expenses Wk 23,BD1 5HQ,ADMIN
FOOD STANDARDS AGENCY - Westminster,FOOD STANDARDS AGENCY - Westminster,2018-06-25,EXP - PURCHASE OF GOODS/SERVICES - SUBSISTENCE,FOOD ADDITIVES,REDFERN TRAVEL LTD,1011706390,122.1,TRAVEL EXPENSES UK WEEK 24,BD1 5HQ,PROGRAMME
FOOD STANDARDS AGENCY - Westminster,FOOD STANDARDS AGENCY - Westminster,2018-06-25,EXP - PURCHASE OF GOODS/SERVICES - SUBSISTENCE,PROCUREMENT,REDFERN TRAVEL LTD,1011706390,122.1,TRAVEL EXPENSES UK WEEK 24,BD1 5HQ,ADMIN
FOOD STANDARDS AGENCY - Westminster,FOOD STANDARDS AGENCY - Westminster,2018-06-20,EXP - PURCHASE OF GOODS/SERVICES -  FOREIGN AIR TRAVEL,"RADIOLOGICAL, NOVEL FOOD & PROCESSES",REDFERN TRAVEL LTD,1011706356,118.5,Travel Expenses Wk 23,BD1 5HQ,ADMIN
FOOD STANDARDS AGENCY - Westminster,FOOD STANDARDS AGENCY - Westminster,2018-06-20,EXP - PURCHASE OF GOODS/SERVICES - SUBSISTENCE,FOOD ADDITIVES,REDFERN TRAVEL LTD,1011706356,118.1,Travel Expenses Wk 23,BD1 5HQ,PROGRAMME
FOOD STANDARDS AGENCY - Westminster,FOOD STANDARDS AGENCY - Westminster,2018-06-25,EXP - PURCHASE OF GOODS/SERVICES - SUBSISTENCE,Wales and West 2 (Wales),REDFERN TRAVEL LTD,1011706390,117.74,TRAVEL EXPENSES UK WEEK 24,BD1 5HQ,ADMIN
FOOD STANDARDS AGENCY - Westminster,FOOD STANDARDS AGENCY - Westminster,2018-06-20,EXP - PURCHASE OF GOODS/SERVICES - SUBSISTENCE,Wales and West 3 ,REDFERN TRAVEL LTD,1011706356,117.74,Travel Expenses Wk 23,BD1 5HQ,ADMIN
FOOD STANDARDS AGENCY - Westminster,FOOD STANDARDS AGENCY - Westminster,2018-06-20,EXP - PURCHASE OF GOODS/SERVICES - RAIL TRAVEL,RESILIENCE ADMIN,REDFERN TRAVEL LTD,1011706356,117.4,Travel Expenses Wk 23,BD1 5HQ,ADMIN
FOOD STANDARDS AGENCY - Westminster,FOOD STANDARDS AGENCY - Westminster,2018-06-25,EXP - PURCHASE OF GOODS/SERVICES - SUBSISTENCE,COMMS,REDFERN TRAVEL LTD,1011706390,114.6,TRAVEL EXPENSES UK WEEK 24,BD1 5HQ,PROGRAMME
FOOD STANDARDS AGENCY - Westminster,FOOD STANDARDS AGENCY - Westminster,2018-06-25,EXP - PURCHASE OF GOODS/SERVICES - RAIL TRAVEL,FOOD CRIME UNIT PROG,REDFERN TRAVEL LTD,1011706390,113.5,TRAVEL EXPENSES UK WEEK 24,BD1 5HQ,ADMIN
FOOD STANDARDS AGENCY - Westminster,FOOD STANDARDS AGENCY - Westminster,2018-06-25,EXP - PURCHASE OF GOODS/SERVICES - SUBSISTENCE,INFORMATION & KNOWLEDGE MANAGMENT,REDFERN TRAVEL LTD,1011706390,110.6,TRAVEL EXPENSES UK WEEK 24,BD1 5HQ,ADMIN
FOOD STANDARDS AGENCY - Westminster,FOOD STANDARDS AGENCY - Westminster,2018-06-20,EXP - PURCHASE OF GOODS/SERVICES - SUBSISTENCE,IT SERVICE DELIVERY,REDFERN TRAVEL LTD,1011706356,99.6,Travel Expenses Wk 23,BD1 5HQ,PROGRAMME
FOOD STANDARDS AGENCY - Westminster,FOOD STANDARDS AGENCY - Westminster,2018-06-20,EXP - PURCHASE OF GOODS/SERVICES - RAIL TRAVEL,Wales and West 1 (England),REDFERN TRAVEL LTD,1011706356,97.85,Travel Expenses Wk 23,BD1 5HQ,PROGRAMME
FOOD STANDARDS AGENCY - Westminster,FOOD STANDARDS AGENCY - Westminster,2018-06-25,EXP - PURCHASE OF GOODS/SERVICES - RAIL TRAVEL,COMMS,REDFERN TRAVEL LTD,1011706390,97.8,TRAVEL EXPENSES UK WEEK 24,BD1 5HQ,ADMIN
FOOD STANDARDS AGENCY - Westminster,FOOD STANDARDS AGENCY - Westminster,2018-06-25,EXP - PURCHASE OF GOODS/SERVICES - SUBSISTENCE,LEGAL  BRANCH A & INVESTIGATIONS,REDFERN TRAVEL LTD,1011706390,97.6,TRAVEL EXPENSES UK WEEK 24,BD1 5HQ,ADMIN
FOOD STANDARDS AGENCY - Westminster,FOOD STANDARDS AGENCY - Westminster,2018-06-25,EXP - PURCHASE OF GOODS/SERVICES - AIR TRAVEL,CORPORATE SUPPORT UNIT,REDFERN TRAVEL LTD,1011706390,92.54,TRAVEL EXPENSES UK WEEK 24,BD1 5HQ,PROGRAMME
FOOD STANDARDS AGENCY - Westminster,FOOD STANDARDS AGENCY - Westminster,2018-06-20,EXP - PURCHASE OF GOODS/SERVICES - RAIL TRAVEL,FOOD INCIDENTS AND RESILIENCE PROG,REDFERN TRAVEL LTD,1011706356,88.2,Travel Expenses Wk 23,BD1 5HQ,ADMIN
FOOD STANDARDS AGENCY - Westminster,FOOD STANDARDS AGENCY - Westminster,2018-06-20,EXP - PURCHASE OF GOODS/SERVICES - RAIL TRAVEL,ANALYSIS & RESEARCH BRANCH,REDFERN TRAVEL LTD,1011706356,86.9,Travel Expenses Wk 23,BD1 5HQ,ADMIN
FOOD STANDARDS AGENCY - Westminster,FOOD STANDARDS AGENCY - Westminster,2018-06-25,EXP - PURCHASE OF GOODS/SERVICES - SUBSISTENCE,NON MEAT FIELD OPS,REDFERN TRAVEL LTD,1011706390,83.6,TRAVEL EXPENSES UK WEEK 24,BD1 5HQ,ADMIN
FOOD STANDARDS AGENCY - Westminster,FOOD STANDARDS AGENCY - Westminster,2018-06-20,EXP - PURCHASE OF GOODS/SERVICES - RAIL TRAVEL,LEGAL  BRANCH A & INVESTIGATIONS,REDFERN TRAVEL LTD,1011706356,83.3,Travel Expenses Wk 23,BD1 5HQ,ADMIN
FOOD STANDARDS AGENCY - Westminster,FOOD STANDARDS AGENCY - Westminster,2018-06-20,EXP - PURCHASE OF GOODS/SERVICES - RAIL TRAVEL,CHEMICAL RISK ASSESSMENT UNIT,REDFERN TRAVEL LTD,1011706356,76.9,Travel Expenses Wk 23,BD1 5HQ,PROGRAMME
FOOD STANDARDS AGENCY - Westminster,FOOD STANDARDS AGENCY - Westminster,2018-06-20,EXP - PURCHASE OF GOODS/SERVICES - RAIL TRAVEL,North 4,REDFERN TRAVEL LTD,1011706356,72.6,Travel Expenses Wk 23,BD1 5HQ,ADMIN
FOOD STANDARDS AGENCY - Westminster,FOOD STANDARDS AGENCY - Westminster,2018-06-20,EXP - PURCHASE OF GOODS/SERVICES - SUBSISTENCE,RESILIENCE ADMIN,REDFERN TRAVEL LTD,1011706356,72.6,Travel Expenses Wk 23,BD1 5HQ,ADMIN
FOOD STANDARDS AGENCY - Westminster,FOOD STANDARDS AGENCY - Westminster,2018-06-25,EXP - PURCHASE OF GOODS/SERVICES - RAIL TRAVEL,"ANIMAL FEED, TSEs & ABPs",REDFERN TRAVEL LTD,1011706390,71.4,TRAVEL EXPENSES UK WEEK 24,BD1 5HQ,ADMIN
FOOD STANDARDS AGENCY - Westminster,FOOD STANDARDS AGENCY - Westminster,2018-06-20,EXP - PURCHASE OF GOODS/SERVICES - SUBSISTENCE,LEGAL  BRANCH A & INVESTIGATIONS,REDFERN TRAVEL LTD,1011706356,65.2,Travel Expenses Wk 23,BD1 5HQ,PROGRAMME
FOOD STANDARDS AGENCY - Westminster,FOOD STANDARDS AGENCY - Westminster,2018-06-20,EXP - PURCHASE OF GOODS/SERVICES - OTHER TRAVEL,NON MEAT FIELD OPS,REDFERN TRAVEL LTD,1011706356,65,Travel Expenses Wk 23,BD1 5HQ,ADMIN
FOOD STANDARDS AGENCY - Westminster,FOOD STANDARDS AGENCY - Westminster,2018-06-25,EXP - PURCHASE OF GOODS/SERVICES - RAIL TRAVEL,INPORT & EXPORTS TEAM,REDFERN TRAVEL LTD,1011706390,62.3,TRAVEL EXPENSES UK WEEK 24,BD1 5HQ,ADMIN
FOOD STANDARDS AGENCY - Westminster,FOOD STANDARDS AGENCY - Westminster,2018-06-25,EXP - PURCHASE OF GOODS/SERVICES - RAIL TRAVEL,CORPORATE SUPPORT UNIT,REDFERN TRAVEL LTD,1011706390,60,TRAVEL EXPENSES UK WEEK 24,BD1 5HQ,PROGRAMME
FOOD STANDARDS AGENCY - Westminster,FOOD STANDARDS AGENCY - Westminster,2018-06-20,EXP - PURCHASE OF GOODS/SERVICES - RAIL TRAVEL,"AGRICULTURAL, PROCESS & ENVIRONMENTAL CONTAMINANTS",REDFERN TRAVEL LTD,1011706356,59.7,Travel Expenses Wk 23,BD1 5HQ,PROGRAMME
FOOD STANDARDS AGENCY - Westminster,FOOD STANDARDS AGENCY - Westminster,2018-06-20,EXP - PURCHASE OF GOODS/SERVICES - RAIL TRAVEL,Wales and West 3 ,REDFERN TRAVEL LTD,1011706356,57.2,Travel Expenses Wk 23,BD1 5HQ,PROGRAMME
FOOD STANDARDS AGENCY - Westminster,FOOD STANDARDS AGENCY - Westminster,2018-06-20,EXP - PURCHASE OF GOODS/SERVICES - SUBSISTENCE,North 4,REDFERN TRAVEL LTD,1011706356,55.1,Travel Expenses Wk 23,BD1 5HQ,PROGRAMME
FOOD STANDARDS AGENCY - Westminster,FOOD STANDARDS AGENCY - Westminster,2018-06-25,EXP - PURCHASE OF GOODS/SERVICES - SUBSISTENCE,FOOD CRIME UNIT PROG,REDFERN TRAVEL LTD,1011706390,51.09,TRAVEL EXPENSES UK WEEK 24,BD1 5HQ,ADMIN
FOOD STANDARDS AGENCY - Westminster,FOOD STANDARDS AGENCY - Westminster,2018-06-25,EXP - PURCHASE OF GOODS/SERVICES - OTHER TRAVEL,ORGANISATIONAL DEVELOPMENT,REDFERN TRAVEL LTD,1011706390,48.99,TRAVEL EXPENSES UK WEEK 24,BD1 5HQ,ADMIN
FOOD STANDARDS AGENCY - Westminster,FOOD STANDARDS AGENCY - Westminster,2018-06-25,EXP - PURCHASE OF GOODS/SERVICES - RAIL TRAVEL,INTERNAL AUDIT,REDFERN TRAVEL LTD,1011706390,48.8,TRAVEL EXPENSES UK WEEK 24,BD1 5HQ,ADMIN
FOOD STANDARDS AGENCY - Westminster,FOOD STANDARDS AGENCY - Westminster,2018-06-20,EXP - PURCHASE OF GOODS/SERVICES - SUBSISTENCE,Wales and West 2 (Wales),REDFERN TRAVEL LTD,1011706356,47.85,Travel Expenses Wk 23,BD1 5HQ,ADMIN
FOOD STANDARDS AGENCY - Westminster,FOOD STANDARDS AGENCY - Westminster,2018-06-25,EXP - PURCHASE OF GOODS/SERVICES - RAIL TRAVEL,ALLERGY & INTOLERANCE,REDFERN TRAVEL LTD,1011706390,39.3,TRAVEL EXPENSES UK WEEK 24,BD1 5HQ,PROGRAMME
FOOD STANDARDS AGENCY - Westminster,FOOD STANDARDS AGENCY - Westminster,2018-06-25,EXP - PURCHASE OF GOODS/SERVICES - OTHER TRAVEL,OPERATIONAL DELIVERY,REDFERN TRAVEL LTD,1011706390,38.49,TRAVEL EXPENSES UK WEEK 24,BD1 5HQ,PROGRAMME
FOOD STANDARDS AGENCY - Westminster,FOOD STANDARDS AGENCY - Westminster,2018-06-25,EXP - PURCHASE OF GOODS/SERVICES - RAIL TRAVEL,Wales and West 2 (Wales),REDFERN TRAVEL LTD,1011706390,36,TRAVEL EXPENSES UK WEEK 24,BD1 5HQ,PROGRAMME
FOOD STANDARDS AGENCY - Westminster,FOOD STANDARDS AGENCY - Westminster,2018-06-20,EXP - PURCHASE OF GOODS/SERVICES - TAXI SERVICES,FOOD HYGIENE POLICY,REDFERN TRAVEL LTD,1011706356,33.32,Travel Expenses Wk 23,BD1 5HQ,PROGRAMME
FOOD STANDARDS AGENCY - Westminster,FOOD STANDARDS AGENCY - Westminster,2018-06-20,EXP - PURCHASE OF GOODS/SERVICES - RAIL TRAVEL,North 2,REDFERN TRAVEL LTD,1011706356,33.3,Travel Expenses Wk 23,BD1 5HQ,ADMIN
FOOD STANDARDS AGENCY - Westminster,FOOD STANDARDS AGENCY - Westminster,2018-06-20,EXP - PURCHASE OF GOODS/SERVICES - OTHER TRAVEL,PROGRAMME AND PROJECT DELIVERY,REDFERN TRAVEL LTD,1011706356,30.15,Travel Expenses Wk 23,BD1 5HQ,ADMIN
FOOD STANDARDS AGENCY - Westminster,FOOD STANDARDS AGENCY - Westminster,2018-06-20,EXP - PURCHASE OF GOODS/SERVICES - RAIL TRAVEL,"ANIMAL FEED, TSEs & ABPs",REDFERN TRAVEL LTD,1011706356,29.2,Travel Expenses Wk 23,BD1 5HQ,PROGRAMME
FOOD STANDARDS AGENCY - Westminster,FOOD STANDARDS AGENCY - Westminster,2018-06-20,EXP - PURCHASE OF GOODS/SERVICES - RAIL TRAVEL,North 1,REDFERN TRAVEL LTD,1011706356,21.8,Travel Expenses Wk 23,BD1 5HQ,PROGRAMME
FOOD STANDARDS AGENCY - Westminster,FOOD STANDARDS AGENCY - Westminster,2018-06-20,EXP - PURCHASE OF GOODS/SERVICES - RAIL TRAVEL,Wales and West 1 (Wales),REDFERN TRAVEL LTD,1011706356,21.7,Travel Expenses Wk 23,BD1 5HQ,ADMIN
FOOD STANDARDS AGENCY - Westminster,FOOD STANDARDS AGENCY - Westminster,2018-06-25,EXP - PURCHASE OF GOODS/SERVICES - RAIL TRAVEL,Wales and West 1 (England),REDFERN TRAVEL LTD,1011706390,20.2,TRAVEL EXPENSES UK WEEK 24,BD1 5HQ,ADMIN
FOOD STANDARDS AGENCY - Westminster,FOOD STANDARDS AGENCY - Westminster,2018-06-25,EXP - PURCHASE OF GOODS/SERVICES - RAIL TRAVEL,"AGRICULTURAL, PROCESS & ENVIRONMENTAL CONTAMINANTS",REDFERN TRAVEL LTD,1011706390,19.5,TRAVEL EXPENSES UK WEEK 24,BD1 5HQ,PROGRAMME
FOOD STANDARDS AGENCY - Westminster,FOOD STANDARDS AGENCY - Westminster,2018-06-20,EXP - PURCHASE OF GOODS/SERVICES - TAXI SERVICES,"RADIOLOGICAL, NOVEL FOOD & PROCESSES",REDFERN TRAVEL LTD,1011706356,19.26,Travel Expenses Wk 23,BD1 5HQ,PROGRAMME
FOOD STANDARDS AGENCY - Westminster,FOOD STANDARDS AGENCY - Westminster,2018-06-20,EXP - PURCHASE OF GOODS/SERVICES - TAXI SERVICES,OPERATIONAL DELIVERY,REDFERN TRAVEL LTD,1011706356,17.6,Travel Expenses Wk 23,BD1 5HQ,ADMIN
FOOD STANDARDS AGENCY - Westminster,FOOD STANDARDS AGENCY - Westminster,2018-06-20,EXP - PURCHASE OF GOODS/SERVICES - TAXI SERVICES,REGULATORY DELIVERY,REDFERN TRAVEL LTD,1011706356,15.07,Travel Expenses Wk 23,BD1 5HQ,ADMIN
FOOD STANDARDS AGENCY - Westminster,FOOD STANDARDS AGENCY - Westminster,2018-06-25,EXP - PURCHASE OF GOODS/SERVICES - RAIL TRAVEL,North 2,REDFERN TRAVEL LTD,1011706390,13.5,TRAVEL EXPENSES UK WEEK 24,BD1 5HQ,PROGRAMME
FOOD STANDARDS AGENCY - Westminster,FOOD STANDARDS AGENCY - Westminster,2018-06-20,EXP - PURCHASE OF GOODS/SERVICES - TAXI SERVICES,LEGAL  BRANCH A & INVESTIGATIONS,REDFERN TRAVEL LTD,1011706356,13.45,Travel Expenses Wk 23,BD1 5HQ,ADMIN
FOOD STANDARDS AGENCY - Westminster,FOOD STANDARDS AGENCY - Westminster,2018-06-20,EXP - PURCHASE OF GOODS/SERVICES - RAIL TRAVEL,"CHAIR, DEPUTY CHAIR & BOARD",REDFERN TRAVEL LTD,1011706356,9.5,Travel Expenses Wk 23,BD1 5HQ,ADMIN
FOOD STANDARDS AGENCY - Westminster,FOOD STANDARDS AGENCY - Westminster,2018-06-25,EXP - PURCHASE OF GOODS/SERVICES - RAIL TRAVEL,East 2,REDFERN TRAVEL LTD,1011706390,8.7,TRAVEL EXPENSES UK WEEK 24,BD1 5HQ,ADMIN
FOOD STANDARDS AGENCY - Westminster,FOOD STANDARDS AGENCY - Westminster,2018-06-20,EXP - SHORT-TERM CONTRACT & AGENCY STAFF,FOOD CRIME UNIT PROG,Capita,1011706431,7.8,Short Term Contract and Agency Staff,SL6 1DP,PROGRAMME
FOOD STANDARDS AGENCY - Westminster,FOOD STANDARDS AGENCY - Westminster,2018-06-20,EXP - PURCHASE OF GOODS/SERVICES - TAXI SERVICES,ORGANISATIONAL DEVELOPMENT,REDFERN TRAVEL LTD,1011706356,7.25,Travel Expenses Wk 23,BD1 5HQ,PROGRAMME
FOOD STANDARDS AGENCY - Westminster,FOOD STANDARDS AGENCY - Westminster,2018-06-20,EXP - SHORT-TERM CONTRACT & AGENCY STAFF,FOOD CRIME UNIT PROG,Capita,1011706431,5.76,Short Term Contract and Agency Staff,SL6 1DP,PROGRAMME
FOOD STANDARDS AGENCY - Westminster,FOOD STANDARDS AGENCY - Westminster,2018-06-25,EXP - PURCHASE OF GOODS/SERVICES - FOREIGN SUBSISTENCE,"AGRICULTURAL, PROCESS & ENVIRONMENTAL CONTAMINANTS",REDFERN TRAVEL LTD,1011706390,1.2,TRAVEL EXPENSES UK WEEK 24,BD1 5HQ,ADMIN
FOOD STANDARDS AGENCY - Westminster,FOOD STANDARDS AGENCY - Westminster,2018-06-20,EXP - PURCHASE OF GOODS/SERVICES - FOREIGN SUBSISTENCE,OPERATIONAL DELIVERY,REDFERN TRAVEL LTD,1011706356,1.2,Travel Expenses Wk 23,BD1 5HQ,ADMIN
FOOD STANDARDS AGENCY - Westminster,FOOD STANDARDS AGENCY - Westminster,2018-06-20,EXP - PURCHASE OF GOODS/SERVICES - FOREIGN SUBSISTENCE,"RADIOLOGICAL, NOVEL FOOD & PROCESSES",REDFERN TRAVEL LTD,1011706356,1.2,Travel Expenses Wk 23,BD1 5HQ,PROGRAMME
FOOD STANDARDS AGENCY - Westminster,FOOD STANDARDS AGENCY - Westminster,2018-06-20,EXP - PURCHASE OF GOODS/SERVICES - FOREIGN SUBSISTENCE,"AGRICULTURAL, PROCESS & ENVIRONMENTAL CONTAMINANTS",REDFERN TRAVEL LTD,1011706356,0.6,Travel Expenses Wk 23,BD1 5HQ,ADMIN
FOOD STANDARDS AGENCY - Westminster,FOOD STANDARDS AGENCY - Westminster,2018-06-20,EXP - PURCHASE OF GOODS/SERVICES - FOREIGN SUBSISTENCE,INPORT & EXPORTS TEAM,REDFERN TRAVEL LTD,1011706356,0.6,Travel Expenses Wk 23,BD1 5HQ,PROGRAMME
FOOD STANDARDS AGENCY - Westminster,FOOD STANDARDS AGENCY - Westminster,2018-06-20,EXP - PURCHASE OF GOODS/SERVICES - FOREIGN SUBSISTENCE,OPERATIONS ASSURANCE DIVISION (PROGRAMME),REDFERN TRAVEL LTD,1011706356,0.6,Travel Expenses Wk 23,BD1 5HQ,ADMIN
FOOD STANDARDS AGENCY - Westminster,FOOD STANDARDS AGENCY - Westminster,2018-06-25,EXP - PURCHASE OF GOODS/SERVICES - FOREIGN SUBSISTENCE,"RADIOLOGICAL, NOVEL FOOD & PROCESSES",REDFERN TRAVEL LTD,1011706390,0.6,TRAVEL EXPENSES UK WEEK 24,BD1 5HQ,ADMIN
FOOD STANDARDS AGENCY - Westminster,FOOD STANDARDS AGENCY - Westminster,2018-06-20,EXP - PURCHASE OF GOODS/SERVICES - RAIL TRAVEL,Wales and West 2 (England),REDFERN TRAVEL LTD,1011706356,-16.4,Travel Expenses Wk 23,BD1 5HQ,ADMIN
FOOD STANDARDS AGENCY - Westminster,FOOD STANDARDS AGENCY - Westminster,2018-06-20,EXP - PURCHASE OF GOODS/SERVICES - RAIL TRAVEL,FOOD ADDITIVES,REDFERN TRAVEL LTD,1011706356,-23.5,Travel Expenses Wk 23,BD1 5HQ,PROGRAMME
FOOD STANDARDS AGENCY - Westminster,FOOD STANDARDS AGENCY - Westminster,2018-06-25,EXP - PURCHASE OF GOODS/SERVICES - RAIL TRAVEL,CHIEF SCIENTIST  ,REDFERN TRAVEL LTD,1011706390,-29.9,TRAVEL EXPENSES UK WEEK 24,BD1 5HQ,PROGRAMME
FOOD STANDARDS AGENCY - Westminster,FOOD STANDARDS AGENCY - Westminster,2018-06-25,EXP - PURCHASE OF GOODS/SERVICES - RAIL TRAVEL,NON MEAT FIELD OPS,REDFERN TRAVEL LTD,1011706390,-43.8,TRAVEL EXPENSES UK WEEK 24,BD1 5HQ,ADMIN
FOOD STANDARDS AGENCY - Westminster,FOOD STANDARDS AGENCY - Westminster,2018-06-20,EXP - PURCHASE OF GOODS/SERVICES - RAIL TRAVEL,Wales and West 4 ,REDFERN TRAVEL LTD,1011706356,-55.4,Travel Expenses Wk 23,BD1 5HQ,PROGRAMME
FOOD STANDARDS AGENCY - Westminster,FOOD STANDARDS AGENCY - Westminster,2018-06-20,EXP - PURCHASE OF GOODS/SERVICES - RAIL TRAVEL,Wales and West 2 (Wales),REDFERN TRAVEL LTD,1011706356,-60.4,Travel Expenses Wk 23,BD1 5HQ,ADMIN
FOOD STANDARDS AGENCY - Westminster,FOOD STANDARDS AGENCY - Westminster,2018-06-20,EXP - PURCHASE OF GOODS/SERVICES - SUBSISTENCE,CORPORATE SUPPORT UNIT,REDFERN TRAVEL LTD,1011706356,-64.67,Travel Expenses Wk 23,BD1 5HQ,ADMIN
FOOD STANDARDS AGENCY - Westminster,FOOD STANDARDS AGENCY - Westminster,2018-06-25,EXP - PURCHASE OF GOODS/SERVICES - RAIL TRAVEL,DIGITAL,REDFERN TRAVEL LTD,1011706390,-69.2,TRAVEL EXPENSES UK WEEK 24,BD1 5HQ,ADMIN
FOOD STANDARDS AGENCY - Westminster,FOOD STANDARDS AGENCY - Westminster,2018-06-20,EXP - PURCHASE OF GOODS/SERVICES - RAIL TRAVEL,IT STRATEGY & DEVELOPMENT,REDFERN TRAVEL LTD,1011706356,-99.5,Travel Expenses Wk 23,BD1 5HQ,PROGRAMME
FOOD STANDARDS AGENCY - Westminster,FOOD STANDARDS AGENCY - Westminster,2018-06-18,EXP - PURCHASE OF GOODS/SERVICES - OTHER - PROGRAMME EXPENDITURE,INFORMATION & KNOWLEDGE MANAGMENT,OPEN DATA INSTITUTE,1011706328,-32500,FS101177 Meat Conditions Data Project (Sian Thomas),EC2A 4JE,PROGRAMME
